[Event "Kragero Resort International 2022"]
[Site "Kragero"]
[Date "2022.02.24"]
[Round "3.21"]
[White "Bjorgvinsson, Andri Freyr"]
[Black "Stanford, Maxim Barth"]
[Result "1/2-1/2"]
[ECO "E09"]
[WhiteElo "2096"]
[BlackElo "2339"]
[Annotator "RC"]
[PlyCount "113"]
[EventDate "2022.02.23"]
[EventType "swiss"]
[EventCountry "NOR"]
[SourceTitle "playchess.com"]
[Source "ChessBase"]
[SourceQuality "1"]
[TimeControl "5400+30"]

1. d4 {[%emt 0:00:07]} Nf6 {[%emt 0:00:25]} 2. c4 {[%emt 0:00:38]} e6 {[%emt 0:00:11]} 3. g3 {[%emt 0:00:26]} d5 {[%emt 0:00:35]} 4. Bg2 {[%emt 0:00:15]} Be7 {[%emt 0:00:56]} 5. Nf3 {[%emt 0:00:20]} O-O {[%emt 0:00:30]} 6. O-O {[%emt 0:00:10]} Nbd7 {[%emt 0:00:33]} 7. Qc2 {[%emt 0:02:40]} c6 {[%emt 0:00:32]} 8. Nc3 {[%emt 0:03:43]} b6 {[%emt 0:01:06]} 9. e4 {[%emt 0:00:20]} dxe4 {[%emt 0:04:30]} 10. Nxe4 {[%emt 0:00:10]} Nxe4 {[%emt 0:00:35]} 11. Qxe4 {[%emt 0:00:15]} Ba6 {[%emt 0:02:01]} 12. b3 {[%emt 0:05:28]} Rc8 {[%emt 0:00:52]} 13. Bf4 {[%emt 0:08:16]} b5 {[%emt 0:03:29]} 14. Rac1 {[%emt 0:11:27]} bxc4 {[%emt 0:02:27]} 15. bxc4 {[%emt 0:00:07]} Qa5 {[%emt 0:00:39]} 16. Rc2 {[%emt 0:04:46]} Qa4 {[%emt 0:02:37]} 17. Qd3 {[%emt 0:07:44]} c5 {[%emt 0:12:04]} 18. Qb3 {[%emt 0:05:49]} Qa5 {[%emt 0:01:53]} 19. Bd2 {[%emt 0:01:53]} Qc7 {[%emt 0:01:41]} 20. Qa4 {[%emt 0:01:10]} Bb7 {[%emt 0:02:30]} 21. Bf4 {[%emt 0:03:35]} Bd6 {[%emt 0:03:03]} 22. Bxd6 {[%emt 0:01:22]} Qxd6 {[%emt 0:00:33]} 23. dxc5 {[%emt 0:09:31]} Nxc5 {[%emt 0:00:46]} 24. Qa3 {[%emt 0:02:22]} e5 {[%emt 0:08:08]} 25. Qe3 {[%emt 0:04:34]} e4 {[%emt 0:07:18]} 26. Nd4 {[%emt 0:06:42]} Qe5 {[%emt 0:00:48]} 27. Nb3 {[%emt 0:03:40]} Rfd8 {[%emt 0:04:29]} 28. Rd2 {[%emt 0:01:01]} Rxd2 {[%emt 0:01:20]} 29. Nxd2 {[%emt 0:00:06]} f5 {[%emt 0:03:52]} 30. Nb3 {[%emt 0:00:21]} Ba6 {[%emt 0:03:12]} 31. Rd1 {[%emt 0:15:02]} Bxc4 {[%emt 0:02:46]} 32. Bf1 {[%emt 0:00:57]} Be6 {[%emt 0:06:19]} 33. f4 {[%emt 0:00:53]} Qc7 {[%emt 0:01:52]} 34. Rc1 {[%emt 0:00:08]} Bxb3 {[%emt 0:00:31]} 35. axb3 {[%emt 0:00:05]} Qb6 {[%emt 0:00:24]} 36. Qd4 {[%emt 0:00:50]} a5 {[%emt 0:00:19]} 37. Bc4+ {[%emt 0:01:21]} Kh8 {[%emt 0:00:56]} 38. Kg2 {[%emt 0:00:43]} h6 {[%emt 0:10:35]} 39. h4 {[%emt 0:00:15]} Qb4 {[%emt 0:03:01]} 40. Qd5 {[%emt 0:00:27]} Rf8 {[%emt 0:01:18]} 41. Qd6 {[%emt 0:00:42]} Nd3 {[%emt 0:02:43]} 42. Qxb4 {[%emt 0:00:20]} axb4 {[%emt 0:00:57]} 43. Bxd3 {[%emt 0:00:19]} exd3 {[%emt 0:00:05]} 44. Rd1 {[%emt 0:00:20]} Rc8 {[%emt 0:00:48]} 45. Rxd3 {[%emt 0:01:05]} Rc3 {[%emt 0:00:06]} 46. Rd5 {[%emt 0:00:19]} Rxb3 {[%emt 0:02:22]} 47. Rxf5 {[%emt 0:00:04]} Kg8 {[%emt 0:00:35]} 48. Kh3 {[%emt 0:00:38]} Rb1 {[%emt 0:02:25]} 49. h5 {[%emt 0:00:38]} b3 {[%emt 0:00:34]} 50. Kg4 {[%emt 0:00:11]} b2 {[%emt 0:00:32]} 51. Rb5 {[%emt 0:00:04]} Kf7 {[%emt 0:00:09]} 52. Rb6 {[%emt 0:00:11]} Ke7 {[%emt 0:01:07]} 53. Kf5 {[%emt 0:00:46]} Rg1 {[%emt 0:00:35]} 54. Rxb2 {[%emt 0:00:04]} Rxg3 {[%emt 0:00:05]} 55. Rb7+ {[%emt 0:00:19]} Kf8 {[%emt 0:00:26]} 56. Ke6 {[%emt 0:01:39]} Re3+ {[%emt 0:01:33]} 57. Kf5 {[%emt 0:00:07]} 1/2-1/2

[Event "Kragero Resort International 2022"]
[Site "Kragero"]
[Date "2022.02.24"]
[Round "3.22"]
[White "Hirneise, Jens"]
[Black "Blokhin, Sofia"]
[Result "0-1"]
[ECO "B43"]
[WhiteElo "2327"]
[BlackElo "2059"]
[Annotator "RC"]
[PlyCount "102"]
[EventDate "2022.02.23"]
[EventType "swiss"]
[EventCountry "NOR"]
[SourceTitle "playchess.com"]
[Source "ChessBase"]
[SourceQuality "1"]
[TimeControl "5400+30"]

1. e4 {[%emt 0:00:02]} c5 {[%emt 0:00:05]} 2. Nf3 {[%emt 0:00:05]} e6 {[%emt 0:00:06]} 3. d4 {[%emt 0:00:06]} cxd4 {[%emt 0:00:05]} 4. Nxd4 {[%emt 0:00:07]} a6 {[%emt 0:00:05]} 5. a3 {[%emt 0:00:09]} Nf6 {[%emt 0:00:23]} 6. Nc3 {[%emt 0:01:22]} Qc7 {[%emt 0:00:24]} 7. Be2 {[%emt 0:02:36]} Nc6 {[%emt 0:01:49]} 8. f4 {[%emt 0:01:00]} d6 {[%emt 0:04:52]} 9. Be3 {[%emt 0:00:07]} Be7 {[%emt 0:02:04]} 10. g4 {[%emt 0:01:01]} Nd7 {[%emt 0:13:35]} 11. h4 {[%emt 0:10:00]} b5 {[%emt 0:04:54]} 12. Nxc6 {[%emt 0:02:04]} Qxc6 {[%emt 0:00:10]} 13. g5 {[%emt 0:01:45]} Bb7 {[%emt 0:03:55]} 14. Qd4 {[%emt 0:05:58]} e5 {[%emt 0:02:03]} 15. Qd2 {[%emt 0:00:33]} f5 {[%emt 0:06:08]} 16. Bh5+ {[%emt 0:07:50]} g6 {[%emt 0:00:22]} 17. Bf3 {[%emt 0:00:16]} exf4 {[%emt 0:05:23]} 18. Bxf4 {[%emt 0:00:50]} Nc5 {[%emt 0:02:45]} 19. O-O-O {[%emt 0:05:23]} fxe4 {[%emt 0:11:49]} 20. Bxe4 {[%emt 0:04:45]} Nxe4 {[%emt 0:02:36]} 21. Nxe4 {[%emt 0:00:08]} O-O {[%emt 0:05:54]} 22. Rhe1 {[%emt 0:03:15]} Qc4 {[%emt 0:03:43]} 23. b3 {[%emt 0:03:29]} Qf7 {[%emt 0:02:45]} 24. Nxd6 {[%emt 0:04:49]} Bxd6 {[%emt 0:05:25]} 25. Bxd6 {[%emt 0:00:07]} Rfe8 {[%emt 0:00:52]} 26. Rf1 {[%emt 0:02:49]} Qg7 {[%emt 0:04:40]} 27. Rf6 {[%emt 0:03:58]} Be4 {[%emt 0:03:02]} 28. Bb4 {[%emt 0:04:41]} Rac8 {[%emt 0:03:30]} 29. c3 {[%emt 0:06:51]} Bf5 {[%emt 0:05:34]} 30. h5 {[%emt 0:06:17]} Qc7 {[%emt 0:02:51]} 31. Qd5+ {[%emt 0:02:39]} Kh8 {[%emt 0:00:33]} 32. Qd4 {[%emt 0:00:51]} Kg8 {[%emt 0:00:21]} 33. hxg6 {[%emt 0:04:26]} hxg6 {[%emt 0:00:53]} 34. Rh1 {[%emt 0:06:02]} Re5 {[%emt 0:00:11]} 35. Kb2 {[%emt 0:02:58]} Re2+ {[%emt 0:02:12]} 36. Ka1 {[%emt 0:00:18]} Re5 {[%emt 0:01:06]} 37. Bd6 {[%emt 0:01:13]} Qc6 {[%emt 0:00:21]} 38. Rc1 {[%emt 0:03:13]} Rd5 {[%emt 0:00:23]} 39. Be5 {[%emt 0:02:47]} Qd7 {[%emt 0:01:22]} 40. Qf4 {[%emt 0:00:19]} Qe7 {[%emt 0:00:30]} 41. Bd6 {[%emt 0:00:32]} Qe2 {[%emt 0:00:16]} 42. Qh2 {[%emt 0:00:43]} Qe3 {[%emt 0:00:34]} 43. Bf4 {[%emt 0:00:37]} Qc5 {[%emt 0:00:35]} 44. Qb2 {[%emt 0:01:04]} Rcd8 {[%emt 0:00:15]} 45. Rxa6 {[%emt 0:01:58]} Rd1 {[%emt 0:00:25]} 46. a4 {[%emt 0:00:34]} Qg1 {[%emt 0:00:27]} 47. Ka2 {[%emt 0:00:48]} Rxc1 {[%emt 0:00:38]} 48. Bxc1 {[%emt 0:00:19]} bxa4 {[%emt 0:00:21]} 49. bxa4 {[%emt 0:00:27]} Be4 {[%emt 0:00:51]} 50. c4 {[%emt 0:00:27]} Qf1 {[%emt 0:00:31]} 51. Qb3 {[%emt 0:00:45]} Qxc1 {[%emt 0:00:18]} 0-1

[Event "Kragero Resort International 2022"]
[Site "Kragero"]
[Date "2022.02.24"]
[Round "3.24"]
[White "Verbin, Valentina"]
[Black "Ingebretsen, Jens E"]
[Result "1/2-1/2"]
[ECO "C78"]
[WhiteElo "2046"]
[BlackElo "2316"]
[Annotator "RC"]
[PlyCount "102"]
[EventDate "2022.02.23"]
[EventType "swiss"]
[EventCountry "NOR"]
[SourceTitle "playchess.com"]
[Source "ChessBase"]
[SourceQuality "1"]
[TimeControl "5400+30"]

1. e4 {[%emt 0:00:04]} e5 {[%emt 0:03:49]} 2. Nf3 {[%emt 0:00:16]} Nc6 {[%emt 0:00:11]} 3. Bb5 {[%emt 0:00:30]} a6 {[%emt 0:00:19]} 4. Ba4 {[%emt 0:00:13]} Nf6 {[%emt 0:00:09]} 5. O-O {[%emt 0:00:30]} b5 {[%emt 0:00:51]} 6. Bb3 {[%emt 0:00:06]} Bc5 {[%emt 0:00:24]} 7. c3 {[%emt 0:00:24]} d6 {[%emt 0:00:10]} 8. d4 {[%emt 0:00:34]} Bb6 {[%emt 0:01:33]} 9. a4 {[%emt 0:03:57]} Rb8 {[%emt 0:00:20]} 10. Qd3 {[%emt 0:00:13]} O-O {[%emt 0:02:36]} 11. Bg5 {[%emt 0:00:29]} Qe7 {[%emt 0:04:02]} 12. axb5 {[%emt 0:06:46]} axb5 {[%emt 0:00:15]} 13. Bxf6 {[%emt 0:01:15]} Qxf6 {[%emt 0:00:51]} 14. Qxb5 {[%emt 0:00:09]} Bb7 {[%emt 0:23:37]} 15. Bd5 {[%emt 0:05:40]} Ne7 {[%emt 0:05:38]} 16. dxe5 {[%emt 0:09:22]} Qf4 {[%emt 0:00:24]} 17. Bxb7 {[%emt 0:00:48]} Rxb7 {[%emt 0:00:07]} 18. Qd7 {[%emt 0:02:15]} Ng6 {[%emt 0:00:33]} 19. exd6 {[%emt 0:03:12]} Qxe4 {[%emt 0:01:47]} 20. dxc7 {[%emt 0:08:36]} Bxc7 {[%emt 0:01:16]} 21. Nbd2 {[%emt 0:03:30]} Qf4 {[%emt 0:03:35]} 22. Ra4 {[%emt 0:14:48]} Qf6 {[%emt 0:02:52]} 23. Ne4 {[%emt 0:11:43]} Qxf3 {[%emt 0:04:15]} 24. gxf3 {[%emt 0:00:15]} Bxh2+ {[%emt 0:00:05]} 25. Kxh2 {[%emt 0:00:02]} Rxd7 {[%emt 0:00:07]} 26. b4 {[%emt 0:01:38]} Rd3 {[%emt 0:07:49]} 27. b5 {[%emt 0:01:52]} f5 {[%emt 0:01:42]} 28. Ng5 {[%emt 0:00:51]} Rxc3 {[%emt 0:01:00]} 29. Ra7 {[%emt 0:03:32]} h6 {[%emt 0:06:57]} 30. Ne6 {[%emt 0:00:48]} Rf7 {[%emt 0:00:26]} 31. Ra8+ {[%emt 0:13:51]} Kh7 {[%emt 0:00:45]} 32. b6 {[%emt 0:00:25]} Rb7 {[%emt 0:02:02]} 33. Rb1 {[%emt 0:02:37]} Rc6 {[%emt 0:01:07]} 34. Ra7 {[%emt 0:00:39]} Rcxb6 {[%emt 0:01:50]} 35. Rxb7 {[%emt 0:00:14]} Rxe6 {[%emt 0:00:06]} 36. Rf7 {[%emt 0:00:14]} Ne5 {[%emt 0:04:45]} 37. Rxf5 {[%emt 0:00:53]} Nd3 {[%emt 0:00:01]} 38. Rf7 {[%emt 0:02:04]} Ne5 {[%emt 0:00:37]} 39. Rf5 {[%emt 0:00:50]} Re7 {[%emt 0:01:18]} 40. Kg3 {[%emt 0:02:35]} Kg6 {[%emt 0:00:53]} 41. Rf4 {[%emt 0:00:15]} Rc7 {[%emt 0:01:30]} 42. Re4 {[%emt 0:01:23]} Nf7 {[%emt 0:00:52]} 43. Rb6+ {[%emt 0:00:30]} Kh7 {[%emt 0:00:10]} 44. f4 {[%emt 0:00:08]} Rc3+ {[%emt 0:01:26]} 45. f3 {[%emt 0:00:14]} Rc7 {[%emt 0:00:23]} 46. Reb4 {[%emt 0:00:22]} Rc2 {[%emt 0:01:11]} 47. Rd4 {[%emt 0:00:25]} Rc7 {[%emt 0:00:58]} 48. Rdb4 {[%emt 0:00:33]} Rc5 {[%emt 0:00:32]} 49. Rd4 {[%emt 0:00:35]} Rc7 {[%emt 0:00:24]} 50. Rdb4 {[%emt 0:00:21]} Rc5 {[%emt 0:01:23]} 51. Rd4 {[%emt 0:00:51]} Rc7 {[%emt 0:00:55]} 1/2-1/2

[Event "Kragero Resort International 2022"]
[Site "Kragero"]
[Date "2022.02.24"]
[Round "3.25"]
[White "Van Dael, Siem"]
[Black "Krivenko, Dion"]
[Result "1-0"]
[ECO "B33"]
[WhiteElo "2303"]
[BlackElo "2012"]
[Annotator "RC"]
[PlyCount "67"]
[EventDate "2022.02.23"]
[EventType "swiss"]
[EventCountry "NOR"]
[SourceTitle "playchess.com"]
[Source "ChessBase"]
[SourceQuality "1"]
[TimeControl "5400+30"]

1. e4 {[%emt 0:00:04]} c5 {[%emt 0:01:16]} 2. Nf3 {[%emt 0:00:07]} Nc6 {[%emt 0:00:06]} 3. d4 {[%emt 0:00:08]} cxd4 {[%emt 0:00:05]} 4. Nxd4 {[%emt 0:00:05]} Qb6 {[%emt 0:00:03]} 5. Nb3 {[%emt 0:00:40]} Nf6 {[%emt 0:00:16]} 6. Nc3 {[%emt 0:00:36]} e6 {[%emt 0:00:16]} 7. Bd3 {[%emt 0:03:08]} Bb4 {[%emt 0:01:34]} 8. O-O {[%emt 0:01:49]} Bxc3 {[%emt 0:02:57]} 9. bxc3 {[%emt 0:00:07]} d6 {[%emt 0:00:08]} 10. Ba3 {[%emt 0:01:58]} Qc7 {[%emt 0:16:11]} 11. Re1 {[%emt 0:10:02]} O-O {[%emt 0:09:30]} 12. e5 {[%emt 0:01:10]} dxe5 {[%emt 0:00:15]} 13. Bxf8 {[%emt 0:02:21]} Kxf8 {[%emt 0:00:04]} 14. Nc5 {[%emt 0:00:50]} b6 {[%emt 0:04:00]} 15. Ne4 {[%emt 0:00:31]} Nd5 {[%emt 0:01:35]} 16. Bb5 {[%emt 0:05:52]} Na5 {[%emt 0:04:27]} 17. c4 {[%emt 0:01:24]} Nxc4 {[%emt 0:06:29]} 18. Bxc4 {[%emt 0:00:24]} Qxc4 {[%emt 0:01:15]} 19. Qh5 {[%emt 0:00:07]} Qc7 {[%emt 0:09:47]} 20. Qxh7 {[%emt 0:00:46]} Nf6 {[%emt 0:02:30]} 21. Qh8+ {[%emt 0:04:52]} Ng8 {[%emt 0:00:09]} 22. Re3 {[%emt 0:01:23]} f6 {[%emt 0:06:11]} 23. Rg3 {[%emt 0:02:42]} Qe7 {[%emt 0:00:30]} 24. Nxf6 {[%emt 0:00:50]} Qxf6 {[%emt 0:01:17]} 25. Rf3 {[%emt 0:00:32]} Qxf3 {[%emt 0:00:09]} 26. gxf3 {[%emt 0:00:03]} Bb7 {[%emt 0:00:10]} 27. Rd1 {[%emt 0:00:20]} Bd5 {[%emt 0:01:04]} 28. c4 {[%emt 0:00:15]} Bc6 {[%emt 0:00:03]} 29. Rd6 {[%emt 0:00:29]} Rc8 {[%emt 0:00:09]} 30. Qh3 {[%emt 0:01:18]} Ne7 {[%emt 0:01:00]} 31. Qxe6 {[%emt 0:00:04]} Bxf3 {[%emt 0:00:34]} 32. Rd7 {[%emt 0:00:27]} Re8 {[%emt 0:00:03]} 33. Rxe7 {[%emt 0:00:32]} Rxe7 {[%emt 0:00:05]} 34. Qc8+ {[%emt 0:00:05]} 1-0

[Event "Kragero Resort International 2022"]
[Site "Kragero"]
[Date "2022.02.24"]
[Round "3.27"]
[White "Westrum, Kim Roger Hansen"]
[Black "Unneland, Mathias"]
[Result "1/2-1/2"]
[ECO "B96"]
[WhiteElo "1967"]
[BlackElo "2262"]
[Annotator "RC"]
[PlyCount "87"]
[EventDate "2022.02.23"]
[EventType "swiss"]
[EventCountry "NOR"]
[SourceTitle "playchess.com"]
[Source "ChessBase"]
[SourceQuality "1"]
[TimeControl "5400+30"]

1. e4 {[%emt 0:00:04]} c5 {[%emt 0:00:24]} 2. Nf3 {[%emt 0:00:11]} d6 {[%emt 0:00:42]} 3. d4 {[%emt 0:08:02]} cxd4 {[%emt 0:00:13]} 4. Nxd4 {[%emt 0:00:09]} Nf6 {[%emt 0:00:18]} 5. Nc3 {[%emt 0:00:07]} a6 {[%emt 0:01:04]} 6. Bg5 {[%emt 0:00:31]} e6 {[%emt 0:02:43]} 7. f4 {[%emt 0:00:23]} h6 {[%emt 0:01:56]} 8. Bh4 {[%emt 0:00:11]} Qb6 {[%emt 0:01:53]} 9. a3 {[%emt 0:01:00]} Be7 {[%emt 0:01:42]} 10. Qd3 {[%emt 0:02:18]} Nbd7 {[%emt 0:26:17]} 11. O-O-O {[%emt 0:00:42]} Nc5 {[%emt 0:04:45]} 12. Qe3 {[%emt 0:19:53]} Qc7 {[%emt 0:13:20]} 13. Bxf6 {[%emt 0:09:17]} gxf6 {[%emt 0:05:29]} 14. f5 {[%emt 0:00:49]} b5 {[%emt 0:07:15]} 15. Be2 {[%emt 0:01:54]} h5 {[%emt 0:03:15]} 16. h4 {[%emt 0:00:44]} Rb8 {[%emt 0:03:48]} 17. b4 {[%emt 0:11:48]} Na4 {[%emt 0:09:52]} 18. Rd3 {[%emt 0:01:58]} Nb6 {[%emt 0:01:42]} 19. Qg3 {[%emt 0:08:53]} Bf8 {[%emt 0:02:27]} 20. Ndxb5 {[%emt 0:06:25]} axb5 {[%emt 0:00:12]} 21. Nxb5 {[%emt 0:00:03]} Qb7 {[%emt 0:05:49]} 22. Nxd6+ {[%emt 0:01:09]} Bxd6 {[%emt 0:00:07]} 23. Rxd6 {[%emt 0:00:06]} Qxe4 {[%emt 0:02:48]} 24. Bb5+ {[%emt 0:17:39]} Ke7 {[%emt 0:00:20]} 25. Rxb6 {[%emt 0:00:12]} Rxb6 {[%emt 0:01:10]} 26. Qc7+ {[%emt 0:00:02]} Kf8 {[%emt 0:00:15]} 27. Qxb6 {[%emt 0:00:06]} Qxf5 {[%emt 0:00:59]} 28. Qd6+ {[%emt 0:02:53]} Kg7 {[%emt 0:00:14]} 29. Rh3 {[%emt 0:01:08]} Qxb5 {[%emt 0:00:48]} 30. Rg3+ {[%emt 0:00:38]} Kh7 {[%emt 0:00:14]} 31. Qe7 {[%emt 0:00:52]} Qe8 {[%emt 0:01:06]} 32. Qxf6 {[%emt 0:01:25]} Rg8 {[%emt 0:00:05]} 33. Rxg8 {[%emt 0:01:06]} Qxg8 {[%emt 0:00:19]} 34. a4 {[%emt 0:01:05]} Bb7 {[%emt 0:00:22]} 35. b5 {[%emt 0:00:50]} Bxg2 {[%emt 0:01:05]} 36. a5 {[%emt 0:00:19]} Bd5 {[%emt 0:00:58]} 37. a6 {[%emt 0:00:54]} Qg1+ {[%emt 0:00:18]} 38. Kb2 {[%emt 0:00:08]} Qa7 {[%emt 0:00:52]} 39. Ka3 {[%emt 0:01:51]} Qc5+ {[%emt 0:01:01]} 40. Ka4 {[%emt 0:00:48]} Qxc2+ {[%emt 0:00:15]} 41. Ka5 {[%emt 0:00:06]} Qc7+ {[%emt 0:00:13]} 42. Kb4 {[%emt 0:01:24]} Qc4+ {[%emt 0:01:35]} 43. Ka5 {[%emt 0:00:07]} Qc7+ {[%emt 0:00:49]} 44. Kb4 {[%emt 0:00:04]} 1/2-1/2

[Event "Kragero Resort International 2022"]
[Site "Kragero"]
[Date "2022.02.24"]
[Round "3.28"]
[White "Radeva, Viktoria"]
[Black "Ihlen, Sivert"]
[Result "1-0"]
[ECO "C42"]
[WhiteElo "2261"]
[BlackElo "1962"]
[Annotator "RC"]
[PlyCount "67"]
[EventDate "2022.02.23"]
[EventType "swiss"]
[EventCountry "NOR"]
[SourceTitle "playchess.com"]
[Source "ChessBase"]
[SourceQuality "1"]
[TimeControl "5400+30"]

1. e4 {[%emt 0:01:06]} e5 {[%emt 0:00:07]} 2. Nf3 {[%emt 0:00:06]} Nf6 {[%emt 0:00:05]} 3. Nxe5 {[%emt 0:00:15]} d6 {[%emt 0:00:07]} 4. Nf3 {[%emt 0:00:05]} Nxe4 {[%emt 0:00:04]} 5. Nc3 {[%emt 0:00:07]} Nxc3 {[%emt 0:00:05]} 6. dxc3 {[%emt 0:00:08]} Be7 {[%emt 0:00:45]} 7. Be3 {[%emt 0:00:05]} O-O {[%emt 0:00:54]} 8. Qd2 {[%emt 0:00:05]} Nd7 {[%emt 0:00:20]} 9. O-O-O {[%emt 0:01:02]} Nf6 {[%emt 0:01:20]} 10. h3 {[%emt 0:05:17]} c5 {[%emt 0:09:46]} 11. c4 {[%emt 0:17:34]} Bd7 {[%emt 0:04:44]} 12. g4 {[%emt 0:03:13]} Bc6 {[%emt 0:05:32]} 13. Bg2 {[%emt 0:01:55]} a6 {[%emt 0:10:00]} 14. Ne1 {[%emt 0:12:05]} Bxg2 {[%emt 0:07:21]} 15. Nxg2 {[%emt 0:00:05]} b5 {[%emt 0:00:25]} 16. Qe2 {[%emt 0:07:53]} Qa5 {[%emt 0:07:04]} 17. Kb1 {[%emt 0:01:57]} bxc4 {[%emt 0:03:31]} 18. Bd2 {[%emt 0:03:36]} Qc7 {[%emt 0:01:13]} 19. g5 {[%emt 0:01:18]} Nd5 {[%emt 0:05:04]} 20. Qxc4 {[%emt 0:00:32]} Nb6 {[%emt 0:00:46]} 21. Qf4 {[%emt 0:03:25]} Rab8 {[%emt 0:07:16]} 22. Ne3 {[%emt 0:03:41]} Qb7 {[%emt 0:03:05]} 23. Bc3 {[%emt 0:04:56]} Rfd8 {[%emt 0:06:48]} 24. Nf5 {[%emt 0:03:00]} d5 {[%emt 0:09:25]} 25. Rhe1 {[%emt 0:07:06]} Bf8 {[%emt 0:07:45]} 26. Nh6+ {[%emt 0:06:01]} gxh6 {[%emt 0:00:11]} 27. Qf6 {[%emt 0:00:20]} d4 {[%emt 0:00:55]} 28. gxh6 {[%emt 0:00:02]} Qg2 {[%emt 0:04:14]} 29. Rg1 {[%emt 0:00:11]} Qg6 {[%emt 0:00:04]} 30. Rxg6+ {[%emt 0:00:25]} hxg6 {[%emt 0:00:30]} 31. Ba5 {[%emt 0:01:16]} Rd6 {[%emt 0:05:07]} 32. h7+ {[%emt 0:00:07]} Kxh7 {[%emt 0:00:03]} 33. Qxf7+ {[%emt 0:00:05]} Kh8 {[%emt 0:00:36]} 34. Qa7 {[%emt 0:02:20]} 1-0

[Event "Kragero Resort International 2022"]
[Site "Kragero"]
[Date "2022.02.24"]
[Round "4.1"]
[White "Omarsson, Adam"]
[Black "Engeset, Audun"]
[Result "0-1"]
[ECO "E20"]
[WhiteElo "1546"]
[BlackElo "1823"]
[Annotator "NA RC"]
[PlyCount "138"]
[EventDate "2022.02.23"]
[EventType "swiss"]
[EventCountry "NOR"]
[SourceTitle "playchess.com"]
[Source "ChessBase"]
[SourceQuality "1"]
[TimeControl "5400+30"]

1. d4 {[%emt 0:00:03]} Nf6 {[%emt 0:00:19]} 2. c4 {[%emt 0:00:20]} e6 {[%emt 0:00:22]} 3. Nc3 {[%emt 0:01:06]} Bb4 {[%emt 0:00:15]} 4. f3 {[%emt 0:01:08]} c5 {[%emt 0:00:43]} 5. d5 {[%emt 0:01:03]} d6 {[%emt 0:00:54]} 6. e4 {[%emt 0:03:01]} b5 {[%emt 0:01:02]} 7. Bd2 {[%emt 0:01:27]} Bxc3 {[%emt 0:00:41]} 8. Bxc3 {[%emt 0:00:17]} b4 {[%emt 0:00:17]} 9. Bd2 {[%emt 0:03:01]} O-O {[%emt 0:02:43]} 10. a3 {[%emt 0:02:57]} Qb6 {[%emt 0:13:39]} 11. axb4 {[%emt 0:02:14]} cxb4 {[%emt 0:00:29]} 12. Bd3 {[%emt 0:04:21]} Nbd7 {[%emt 0:04:14]} 13. Ne2 {[%emt 0:01:13]} Re8 {[%emt 0:05:49]} 14. Bc2 {[%emt 0:04:17]} exd5 {[%emt 0:02:20]} 15. cxd5 {[%emt 0:00:17]} Ba6 {[%emt 0:00:52]} 16. Ba4 {[%emt 0:02:39]} Ne5 {[%emt 0:04:58]} 17. Nc1 {[%emt 0:02:55]} Rec8 {[%emt 0:04:50]} 18. Bc6 {[%emt 0:05:11]} Nxc6 {[%emt 0:01:34]} 19. dxc6 {[%emt 0:00:08]} Rxc6 {[%emt 0:02:07]} 20. Qb3 {[%emt 0:02:32]} Rac8 {[%emt 0:01:37]} 21. Qe3 {[%emt 0:04:39]} Qb5 {[%emt 0:03:35]} 22. Nb3 {[%emt 0:01:25]} R6c7 {[%emt 0:16:26]} 23. Nd4 {[%emt 0:02:33]} Qd3 {[%emt 0:01:38]} 24. Qxd3 {[%emt 0:00:13]} Bxd3 {[%emt 0:00:08]} 25. Kf2 {[%emt 0:00:21]} d5 {[%emt 0:05:51]} 26. e5 {[%emt 0:02:29]} Nd7 {[%emt 0:00:50]} 27. Bxb4 {[%emt 0:01:48]} Rb7 {[%emt 0:02:21]} 28. Bd6 {[%emt 0:05:45]} Rxb2+ {[%emt 0:02:07]} 29. Ke3 {[%emt 0:00:11]} Bg6 {[%emt 0:00:48]} 30. Rhc1 {[%emt 0:01:54]} Re8 {[%emt 0:02:35]} 31. Nc6 {[%emt 0:01:27]} Rxg2 {[%emt 0:02:44]} 32. Rxa7 {[%emt 0:03:27]} Nb6 {[%emt 0:01:03]} 33. Kd4 {[%emt 0:02:00]} Rd2+ {[%emt 0:03:27]} 34. Kc5 {[%emt 0:02:09]} Nc4 {[%emt 0:01:20]} 35. Ne7+ {[%emt 0:01:09]} Kh8 {[%emt 0:00:15]} 36. Kc6 {[%emt 0:00:26]} Bh5 {[%emt 0:04:48]} 37. Rca1 {[%emt 0:02:20]} h6 {[%emt 0:03:11]} 38. f4 {[%emt 0:05:07]} Kh7 {[%emt 0:01:33]} 39. Kd7 {[%emt 0:01:54]} Rh8 {[%emt 0:00:18]} 40. R1a2 {[%emt 0:01:51]} d4 {[%emt 0:01:16]} 41. Rxd2 {[%emt 0:00:50]} Nxd2 {[%emt 0:00:09]} 42. Nf5 {[%emt 0:00:46]} Bg4 {[%emt 0:00:55]} 43. Ke7 {[%emt 0:00:36]} Bxf5 {[%emt 0:00:21]} 44. Kxf7 {[%emt 0:00:25]} Bg6+ {[%emt 0:01:36]} 45. Ke6 {[%emt 0:00:15]} Re8+ {[%emt 0:01:25]} 46. Kd7 {[%emt 0:00:58]} Nf3 {[%emt 0:01:26]} 47. f5 {[%emt 0:01:16]} Nxe5+ {[%emt 0:00:18]} 48. Bxe5 {[%emt 0:00:35]} Rxe5 {[%emt 0:00:08]} 49. fxg6+ {[%emt 0:00:28]} Kxg6 {[%emt 0:00:08]} 50. Ra2 {[%emt 0:00:21]} Kf5 {[%emt 0:00:24]} 51. Kd6 {[%emt 0:00:20]} Rb5 {[%emt 0:00:23]} 52. Kc6 {[%emt 0:00:41]} Re5 {[%emt 0:00:27]} 53. Kd6 {[%emt 0:00:16]} Re3 {[%emt 0:00:25]} 54. Kd5 {[%emt 0:00:25]} d3 {[%emt 0:01:02]} 55. Kd4 {[%emt 0:00:52]} Rh3 {[%emt 0:01:02]} 56. Rf2+ {[%emt 0:00:31]} Ke6 {[%emt 0:00:47]} 57. Ke4 {[%emt 0:00:28]} g5 {[%emt 0:00:48]} 58. Ra2 {[%emt 0:00:26]} Kf7 {[%emt 0:00:39]} 59. Rb2 {[%emt 0:01:57]} Kg6 {[%emt 0:00:10]} 60. Rg2 {[%emt 0:00:40]} Kh5 {[%emt 0:00:25]} 61. Kf5 {[%emt 0:00:24]} Re3 {[%emt 0:00:39]} 62. Rd2 {[%emt 0:00:54]} Re2 {[%emt 0:01:04]} 63. Rxd3 {[%emt 0:00:13]} Rxh2 {[%emt 0:00:08]} 64. Ke4 {[%emt 0:00:39]} Rf2 {[%emt 0:00:11]} 65. Rd1 {[%emt 0:00:40]} g4 {[%emt 0:00:17]} 66. Ke3 {[%emt 0:00:40]} Rf5 {[%emt 0:00:27]} 67. Rg1 {[%emt 0:01:47]} Kg5 {[%emt 0:00:14]} 68. Rb1 {[%emt 0:00:44]} h5 {[%emt 0:00:18]} 69. Rb8 {[%emt 0:00:24]} g3 {[%emt 0:00:15]} 0-1